[Event "*** Titled Tuesday Blitz"]
[Site "Chess.com"]
[Date "2020.03.03"]
[Round "6"]
[White "StoreySniper"]
[Black "Zubrrr"]
[Result "0-1"]
[WhiteElo "2440"]
[BlackElo "2655"]
[TimeControl "180+1"]
[EndTime "14:01:34 PST"]
[Termination "Zubrrr won by resignation"]

1. Nf3 {[%clk 0:02:54.5]} 1... f5 {[%clk 0:02:59.7]} 2. c4 {[%clk 0:02:53.7]}
2... Nf6 {[%clk 0:02:59.7]} 3. d4 {[%clk 0:02:52.9]} 3... g6 {[%clk 0:03:00]} 4.
b3 {[%clk 0:02:52.7]} 4... Bg7 {[%clk 0:03:00.2]} 5. Bb2 {[%clk 0:02:53.3]} 5...
O-O {[%clk 0:03:00.4]} 6. Nbd2 {[%clk 0:02:53.2]} 6... d6 {[%clk 0:02:51.4]} 7.
g3 {[%clk 0:02:52]} 7... Nc6 {[%clk 0:02:48]} 8. Bg2 {[%clk 0:02:51.6]} 8... e5
{[%clk 0:02:47.4]} 9. d5 {[%clk 0:02:46.9]} 9... Ne7 {[%clk 0:02:44.6]} 10. O-O
{[%clk 0:02:43.4]} 10... h6 {[%clk 0:02:36.3]} 11. Qc2 {[%clk 0:02:35.8]} 11...
g5 {[%clk 0:02:35.1]} 12. e3 {[%clk 0:02:29.1]} 12... Ng6 {[%clk 0:02:31.2]} 13.
Ne1 {[%clk 0:02:18.7]} 13... g4 {[%clk 0:02:25.2]} 14. Nd3 {[%clk 0:02:10.1]}
14... Qe7 {[%clk 0:01:33.3]} 15. Rac1 {[%clk 0:02:09.7]} 15... Bd7 {[%clk
0:01:28.3]} 16. c5 {[%clk 0:02:09.3]} 16... Rac8 {[%clk 0:01:27.9]} 17. c6
{[%clk 0:02:08.2]} 17... bxc6 {[%clk 0:01:27.3]} 18. dxc6 {[%clk 0:02:08.5]}
18... Be6 {[%clk 0:01:27.8]} 19. Ba3 {[%clk 0:02:00.2]} 19... Qf7 {[%clk
0:01:17]} 20. Nc4 {[%clk 0:01:48.5]} 20... Rcd8 {[%clk 0:00:43.6]} 21. Ncxe5
{[%clk 0:01:45.7]} 21... Nxe5 {[%clk 0:00:39.1]} 22. Nxe5 {[%clk 0:01:45.9]}
22... dxe5 {[%clk 0:00:40]} 23. Bxf8 {[%clk 0:01:46.3]} 23... Bxf8 {[%clk
0:00:40.7]} 24. Rfd1 {[%clk 0:01:43]} 24... Bd6 {[%clk 0:00:39.3]} 25. Bf1
{[%clk 0:01:34.4]} 25... Rb8 {[%clk 0:00:29.6]} 26. Bc4 {[%clk 0:01:34]} 26...
Bxc4 {[%clk 0:00:28.8]} 27. Qxc4 {[%clk 0:01:34.3]} 27... Qxc4 {[%clk
0:00:26.4]} 28. Rxc4 {[%clk 0:01:34.4]} 28... Kf7 {[%clk 0:00:23.6]} 29. Ra4
{[%clk 0:01:33.5]} 29... Bc5 {[%clk 0:00:19.2]} 30. Rd5 {[%clk 0:01:33.5]} 30...
Nxd5 {[%clk 0:00:19]} 31. Ra5 {[%clk 0:01:30.7]} 31... Bb6 {[%clk 0:00:17]} 32.
Rxd5 {[%clk 0:01:30.7]} 32... Ke6 {[%clk 0:00:17.1]} 33. Rd7 {[%clk 0:01:30.2]}
33... h5 {[%clk 0:00:17]} 34. Rh7 {[%clk 0:01:30.1]} 34... Rd8 {[%clk
0:00:16.7]} 35. Rh6+ {[%clk 0:01:30.1]} 35... Kd5 {[%clk 0:00:16.9]} 36. Rxh5
{[%clk 0:01:31]} 36... Ke4 {[%clk 0:00:17.1]} 37. Kg2 {[%clk 0:01:31.5]} 37...
Rd2 {[%clk 0:00:16.5]} 38. Rh7 {[%clk 0:01:29.5]} 38... Rxa2 {[%clk 0:00:15]}
39. h4 {[%clk 0:01:27.9]} 39... Bxe3 {[%clk 0:00:14.3]} 40. Rxc7 {[%clk
0:01:25.6]} 40... Rxf2+ {[%clk 0:00:14.9]} 41. Kh1 {[%clk 0:01:26]} 41... Kf3
{[%clk 0:00:13.8]} 42. Rf7 {[%clk 0:01:23.6]} 42... Rf1+ {[%clk 0:00:14.1]} 43.
Kh2 {[%clk 0:01:23.3]} 43... Bg1+ {[%clk 0:00:14.8]} 44. Kh1 {[%clk 0:01:23.8]}
44... Bf2+ {[%clk 0:00:15.7]} 0-1

[Event "*** Titled Tuesday Blitz"]
[Site "Chess.com"]
[Date "2020.03.03"]
[Round "6"]
[White "RiskyDecision"]
[Black "kleopl"]
[Result "0-1"]
[WhiteElo "2614"]
[BlackElo "2486"]
[TimeControl "180+1"]
[EndTime "14:01:34 PST"]
[Termination "kleopl won by resignation"]

1. d4 {[%clk 0:03:00.7]} 1... f5 {[%clk 0:02:58.9]} 2. Nf3 {[%clk 0:02:59.5]}
2... Nf6 {[%clk 0:02:57.5]} 3. g3 {[%clk 0:03:00.2]} 3... g6 {[%clk 0:02:57.3]}
4. Bg2 {[%clk 0:03:01.1]} 4... Bg7 {[%clk 0:02:57.8]} 5. O-O {[%clk 0:03:02]}
5... O-O {[%clk 0:02:58]} 6. b3 {[%clk 0:03:02.8]} 6... d6 {[%clk 0:02:58.3]} 7.
Bb2 {[%clk 0:03:02.3]} 7... Ne4 {[%clk 0:02:57.1]} 8. Nbd2 {[%clk 0:02:57.3]}
8... c5 {[%clk 0:02:55.5]} 9. e3 {[%clk 0:02:55.1]} 9... Nc6 {[%clk 0:02:52.3]}
10. Qc1 {[%clk 0:02:49.1]} 10... cxd4 {[%clk 0:02:45.7]} 11. Nxd4 {[%clk
0:02:45.7]} 11... Nxd4 {[%clk 0:02:43]} 12. Bxd4 {[%clk 0:02:44.2]} 12... e5
{[%clk 0:02:35.7]} 13. Bb2 {[%clk 0:02:41.1]} 13... Nc5 {[%clk 0:02:32.3]} 14.
Bd5+ {[%clk 0:02:35.2]} 14... Be6 {[%clk 0:02:29.8]} 15. Bxe6+ {[%clk
0:02:30.4]} 15... Nxe6 {[%clk 0:02:30.7]} 16. c4 {[%clk 0:02:19.6]} 16... Qc7
{[%clk 0:02:25.2]} 17. Qc2 {[%clk 0:02:08.9]} 17... Qc6 {[%clk 0:02:23.4]} 18.
Rad1 {[%clk 0:01:54.2]} 18... Rad8 {[%clk 0:02:11.1]} 19. Ba3 {[%clk 0:01:42.1]}
19... Rf7 {[%clk 0:02:09.9]} 20. Nb1 {[%clk 0:01:41]} 20... d5 {[%clk
0:01:59.4]} 21. Nc3 {[%clk 0:01:31.8]} 21... d4 {[%clk 0:01:57.7]} 22. Ne2
{[%clk 0:01:00.6]} 22... Ng5 {[%clk 0:01:48.5]} 23. f3 {[%clk 0:00:46]} 23...
Nxf3+ {[%clk 0:01:42.8]} 24. Rxf3 {[%clk 0:00:45]} 24... Qxf3 {[%clk 0:01:43.7]}
25. exd4 {[%clk 0:00:38.8]} 25... exd4 {[%clk 0:01:41.3]} 26. Rd3 {[%clk
0:00:39]} 26... Qe4 {[%clk 0:01:40.1]} 27. Qd1 {[%clk 0:00:38.2]} 27... Rfd7
{[%clk 0:01:30.4]} 28. Nf4 {[%clk 0:00:35.2]} 28... Re8 {[%clk 0:01:27.7]} 29.
Nd5 {[%clk 0:00:28.1]} 29... Rxd5 {[%clk 0:01:23.3]} 30. cxd5 {[%clk 0:00:28]}
30... Qxd5 {[%clk 0:01:24.2]} 31. Bb2 {[%clk 0:00:24.5]} 31... Re4 {[%clk
0:01:17.9]} 32. Qc1 {[%clk 0:00:22.4]} 32... h5 {[%clk 0:01:10.8]} 33. Qd2
{[%clk 0:00:17.8]} 33... Kh7 {[%clk 0:01:09.4]} 34. Ba1 {[%clk 0:00:15.1]} 34...
Qe5 {[%clk 0:01:09]} 35. Bb2 {[%clk 0:00:13.3]} 35... Re2 {[%clk 0:01:04.8]} 36.
Qc1 {[%clk 0:00:06.6]} 36... Re1+ {[%clk 0:01:04.5]} 0-1

[Event "*** Titled Tuesday Blitz"]
[Site "Chess.com"]
[Date "2020.03.03"]
[Round "6"]
[White "HouseOfDurin"]
[Black "AndreyNeves"]
[Result "0-1"]
[WhiteElo "2071"]
[BlackElo "2195"]
[TimeControl "180+1"]
[EndTime "14:01:35 PST"]
[Termination "AndreyNeves won by checkmate"]

1. d4 {[%clk 0:03:00.9]} 1... Nf6 {[%clk 0:02:59]} 2. Bg5 {[%clk 0:03:01.3]}
2... g6 {[%clk 0:02:54.1]} 3. Bxf6 {[%clk 0:03:01.2]} 3... exf6 {[%clk
0:02:53.5]} 4. c4 {[%clk 0:03:02.1]} 4... Bg7 {[%clk 0:02:52.4]} 5. Nc3 {[%clk
0:03:02.6]} 5... O-O {[%clk 0:02:52.2]} 6. g3 {[%clk 0:03:02.7]} 6... f5 {[%clk
0:02:50.9]} 7. e3 {[%clk 0:03:01.4]} 7... d6 {[%clk 0:02:50.9]} 8. Bg2 {[%clk
0:03:00.9]} 8... c6 {[%clk 0:02:49.6]} 9. Nge2 {[%clk 0:03:00.7]} 9... Nd7
{[%clk 0:02:48.4]} 10. O-O {[%clk 0:03:00.2]} 10... Nf6 {[%clk 0:02:47.2]} 11.
b4 {[%clk 0:02:58.9]} 11... a6 {[%clk 0:02:44.7]} 12. a4 {[%clk 0:02:57.4]}
12... Bd7 {[%clk 0:02:44.9]} 13. b5 {[%clk 0:02:44.8]} 13... axb5 {[%clk
0:02:43.6]} 14. axb5 {[%clk 0:02:44.4]} 14... Re8 {[%clk 0:02:42.9]} 15. Qc2
{[%clk 0:02:25.7]} 15... h5 {[%clk 0:02:33.9]} 16. h4 {[%clk 0:02:24]} 16... Ng4
{[%clk 0:02:32]} 17. Ra4 {[%clk 0:02:02.7]} 17... Rxa4 {[%clk 0:02:30]} 18. Qxa4
{[%clk 0:02:03.6]} 18... Qc7 {[%clk 0:02:06.6]} 19. Qa7 {[%clk 0:01:43.8]} 19...
Bf6 {[%clk 0:01:46]} 20. Rb1 {[%clk 0:01:02.7]} 20... g5 {[%clk 0:01:29.7]} 21.
bxc6 {[%clk 0:00:59.8]} 21... Bxc6 {[%clk 0:01:24.4]} 22. Bxc6 {[%clk
0:00:57.6]} 22... Qxc6 {[%clk 0:01:23.8]} 23. Rxb7 {[%clk 0:00:44.3]} 23... gxh4
{[%clk 0:01:16.5]} 24. Rxf7 {[%clk 0:00:43]} 24... Qf3 {[%clk 0:01:06.6]} 25.
Nd1 {[%clk 0:00:19]} 25... Qxe2 {[%clk 0:01:03.5]} 26. Rh7 {[%clk 0:00:18.3]}
26... Qxd1+ {[%clk 0:00:52.6]} 27. Kg2 {[%clk 0:00:18.4]} 27... h3+ {[%clk
0:00:47]} 28. Kxh3 {[%clk 0:00:07.5]} 28... Qh1# {[%clk 0:00:45.1]} 0-1

[Event "*** Titled Tuesday Blitz"]
[Site "Chess.com"]
[Date "2020.03.03"]
[Round "6"]
[White "silverback96"]
[Black "INLOVEWITHF"]
[Result "0-1"]
[WhiteElo "2055"]
[BlackElo "2418"]
[TimeControl "180+1"]
[EndTime "14:01:44 PST"]
[Termination "INLOVEWITHF won by resignation"]

1. g3 {[%clk 0:02:51.7]} 1... d5 {[%clk 0:02:47]} 2. Bg2 {[%clk 0:02:52.5]} 2...
g6 {[%clk 0:02:47.2]} 3. c4 {[%clk 0:02:50.9]} 3... Bg7 {[%clk 0:02:48.1]} 4.
cxd5 {[%clk 0:02:49.3]} 4... Nf6 {[%clk 0:02:47.7]} 5. Nc3 {[%clk 0:02:46.5]}
5... O-O {[%clk 0:02:44.2]} 6. d4 {[%clk 0:02:42.1]} 6... c6 {[%clk 0:02:39.5]}
7. e4 {[%clk 0:02:42.4]} 7... cxd5 {[%clk 0:02:38.9]} 8. e5 {[%clk 0:02:42.5]}
8... Ne4 {[%clk 0:02:36.5]} 9. Nxe4 {[%clk 0:02:17]} 9... dxe4 {[%clk
0:02:37.4]} 10. Bxe4 {[%clk 0:02:17.2]} 10... Nc6 {[%clk 0:02:36.4]} 11. Ne2
{[%clk 0:02:16.8]} 11... Bg4 {[%clk 0:02:34.7]} 12. Be3 {[%clk 0:02:15.3]} 12...
Bxe2 {[%clk 0:02:31.6]} 13. Kxe2 {[%clk 0:02:12]} 13... Qb6 {[%clk 0:02:26.6]}
14. Bxc6 {[%clk 0:01:40]} 14... bxc6 {[%clk 0:02:04.7]} 15. Qc2 {[%clk
0:01:39.6]} 15... f6 {[%clk 0:01:58.6]} 16. exf6 {[%clk 0:01:35.1]} 16... Bxf6
{[%clk 0:01:57.2]} 17. Rhc1 {[%clk 0:01:31.9]} 17... Rfc8 {[%clk 0:01:53.6]} 18.
Qc5 {[%clk 0:01:29.2]} 18... Qxb2+ {[%clk 0:01:51.4]} 19. Kf3 {[%clk 0:01:26.8]}
19... e5 {[%clk 0:01:47.4]} 20. dxe5 {[%clk 0:01:24.1]} 20... Bxe5 {[%clk
0:01:48.3]} 21. Bh6 {[%clk 0:01:18]} 21... Rc7 {[%clk 0:01:23.1]} 22. Kg2 {[%clk
0:01:16.8]} 22... Rf7 {[%clk 0:01:19.1]} 23. Rab1 {[%clk 0:01:15.2]} 23... Qxa2
{[%clk 0:01:16.5]} 24. Qxc6 {[%clk 0:01:05.8]} 24... Rxf2+ {[%clk 0:00:49.9]}
25. Kg1 {[%clk 0:01:01.7]} 25... Bd4 {[%clk 0:00:46.9]} 26. Qxa8+ {[%clk
0:00:58.7]} 26... Rf8+ {[%clk 0:00:47.3]} 27. Kh1 {[%clk 0:00:56.5]} 27... Rxa8
{[%clk 0:00:46.6]} 28. Rb5 {[%clk 0:00:44.8]} 28... Qe2 {[%clk 0:00:23.6]} 29.
h4 {[%clk 0:00:34.1]} 29... Qxb5 {[%clk 0:00:19.5]} 30. Rc7 {[%clk 0:00:33.7]}
30... Qf1+ {[%clk 0:00:12.8]} 31. Kh2 {[%clk 0:00:32.8]} 31... Bg1+ {[%clk
0:00:13]} 0-1

[Event "*** Titled Tuesday Blitz"]
[Site "Chess.com"]
[Date "2020.03.03"]
[Round "6"]
[White "MathiasWomacka"]
[Black "aquaticpineapples"]
[Result "1-0"]
[WhiteElo "2394"]
[BlackElo "2250"]
[TimeControl "180+1"]
[EndTime "14:01:48 PST"]
[Termination "MathiasWomacka won by resignation"]

1. e4 {[%clk 0:03:00.9]} 1... d5 {[%clk 0:02:59.5]} 2. exd5 {[%clk 0:03:00.2]}
2... Qxd5 {[%clk 0:03:00.4]} 3. Nc3 {[%clk 0:03:00.1]} 3... Qa5 {[%clk
0:03:00.5]} 4. d4 {[%clk 0:03:00.2]} 4... Nf6 {[%clk 0:03:00.8]} 5. Nf3 {[%clk
0:03:00.1]} 5... Nc6 {[%clk 0:03:01]} 6. Bd2 {[%clk 0:02:53.5]} 6... a6 {[%clk
0:02:59.1]} 7. Bc4 {[%clk 0:02:42.2]} 7... Qh5 {[%clk 0:02:58.8]} 8. Ne5 {[%clk
0:02:34.6]} 8... Qxd1+ {[%clk 0:02:51.2]} 9. Rxd1 {[%clk 0:02:35.5]} 9... Nd8
{[%clk 0:02:49.3]} 10. O-O {[%clk 0:02:26.8]} 10... e6 {[%clk 0:02:45.6]} 11. d5
{[%clk 0:02:20]} 11... b5 {[%clk 0:02:36.6]} 12. Bb3 {[%clk 0:02:15.3]} 12... b4
{[%clk 0:02:34.5]} 13. Ba4+ {[%clk 0:02:07.1]} 13... Ke7 {[%clk 0:02:30.1]} 14.
dxe6 {[%clk 0:01:45.5]} 14... bxc3 {[%clk 0:02:17.1]} 15. Bxc3 {[%clk
0:01:45.6]} 15... c5 {[%clk 0:01:34.7]} 16. exf7 {[%clk 0:01:00.8]} 16... Ne6
{[%clk 0:00:46.4]} 17. Rfe1 {[%clk 0:00:51.8]} 17... Bb7 {[%clk 0:00:41.9]} 18.
f4 {[%clk 0:00:38.4]} 18... Ne4 {[%clk 0:00:35]} 19. Rd7+ {[%clk 0:00:35.4]}
19... Kf6 {[%clk 0:00:31.7]} 20. Rxb7 {[%clk 0:00:32.6]} 20... Nxc3 {[%clk
0:00:29.9]} 21. bxc3 {[%clk 0:00:33.5]} 21... Bd6 {[%clk 0:00:28.4]} 22. Ng4+
{[%clk 0:00:26.9]} 22... Kg6 {[%clk 0:00:23.6]} 23. Rxe6+ {[%clk 0:00:25.1]}
23... Kf5 {[%clk 0:00:23.3]} 24. Rxd6 {[%clk 0:00:25.1]} 24... Kxg4 {[%clk
0:00:23]} 25. Re6 {[%clk 0:00:22.3]} 25... Rad8 {[%clk 0:00:20.3]} 26. Re8
{[%clk 0:00:20.3]} 26... Kxf4 {[%clk 0:00:19.8]} 27. Rxh8 {[%clk 0:00:18.3]}
27... Rxh8 {[%clk 0:00:17.6]} 28. Re7 {[%clk 0:00:17.5]} 28... Rd8 {[%clk
0:00:15.6]} 29. Re8 {[%clk 0:00:14.2]} 29... Rd1+ {[%clk 0:00:15]} 30. Kf2
{[%clk 0:00:14.4]} 30... Rd2+ {[%clk 0:00:15.3]} 31. Ke1 {[%clk 0:00:14.4]} 1-0

[Event "*** Titled Tuesday Blitz"]
[Site "Chess.com"]
[Date "2020.03.03"]
[Round "6"]
[White "boasovietica"]
[Black "NMZanette"]
[Result "1-0"]
[WhiteElo "2472"]
[BlackElo "2248"]
[TimeControl "180+1"]
[EndTime "14:01:50 PST"]
[Termination "boasovietica won by resignation"]

1. Nf3 {[%clk 0:03:00.9]} 1... d5 {[%clk 0:02:59.2]} 2. b3 {[%clk 0:03:01.8]}
2... c6 {[%clk 0:02:59.2]} 3. Bb2 {[%clk 0:02:55.5]} 3... Nd7 {[%clk 0:02:57.9]}
4. e3 {[%clk 0:02:53.6]} 4... Ngf6 {[%clk 0:02:57.7]} 5. c4 {[%clk 0:02:53.4]}
5... e6 {[%clk 0:02:57.4]} 6. Nc3 {[%clk 0:02:53.8]} 6... Bd6 {[%clk 0:02:56.5]}
7. Qc2 {[%clk 0:02:53.6]} 7... O-O {[%clk 0:02:56.3]} 8. g4 {[%clk 0:02:53.5]}
8... Ne5 {[%clk 0:02:44.4]} 9. Nxe5 {[%clk 0:02:47.1]} 9... Bxe5 {[%clk
0:02:43.3]} 10. Bd3 {[%clk 0:02:47.2]} 10... h6 {[%clk 0:02:29.3]} 11. f4 {[%clk
0:02:39.1]} 11... Nxg4 {[%clk 0:02:20.6]} 12. O-O-O {[%clk 0:02:36.2]} 12...
Bxc3 {[%clk 0:02:16.6]} 13. Bxc3 {[%clk 0:02:29.6]} 13... Nf2 {[%clk 0:02:16.5]}
14. Rhg1 {[%clk 0:02:28.3]} 14... f6 {[%clk 0:02:15.3]} 15. Bh7+ {[%clk
0:02:09.5]} 15... Kh8 {[%clk 0:02:14.1]} 16. Rdf1 {[%clk 0:02:04.8]} 16... Ne4
{[%clk 0:02:11]} 17. Bxe4 {[%clk 0:01:57.7]} 17... dxe4 {[%clk 0:02:10.9]} 18.
Qxe4 {[%clk 0:01:57.7]} 18... Qe7 {[%clk 0:02:05.2]} 19. Rg6 {[%clk 0:01:55.2]}
19... Bd7 {[%clk 0:01:46.4]} 20. Rfg1 {[%clk 0:01:55.1]} 20... Rf7 {[%clk
0:01:45.9]} 21. Qg2 {[%clk 0:01:42.6]} 21... e5 {[%clk 0:01:32.5]} 22. Qg3
{[%clk 0:01:40.4]} 22... Bf5 {[%clk 0:01:30.6]} 23. fxe5 {[%clk 0:01:28.7]}
23... Bxg6 {[%clk 0:01:30.7]} 24. exf6 {[%clk 0:01:25.4]} 24... Rxf6 {[%clk
0:01:22.1]} 25. Bxf6 {[%clk 0:01:23.2]} 25... Qxf6 {[%clk 0:01:22.7]} 26. Qxg6
{[%clk 0:01:23]} 26... Qa1+ {[%clk 0:01:20.9]} 27. Qb1 {[%clk 0:01:22.4]} 27...
Qe5 {[%clk 0:01:07.7]} 28. Qb2 {[%clk 0:01:20.9]} 28... Qxb2+ {[%clk 0:00:57.8]}
29. Kxb2 {[%clk 0:01:21.4]} 29... Rf8 {[%clk 0:00:58.5]} 30. Rg2 {[%clk
0:01:18.9]} 30... g5 {[%clk 0:00:55.6]} 31. Kc3 {[%clk 0:01:18]} 31... Rd8
{[%clk 0:00:54.8]} 32. d4 {[%clk 0:01:17.9]} 32... Kh7 {[%clk 0:00:55]} 33. e4
{[%clk 0:01:17.9]} 33... Kg6 {[%clk 0:00:55.3]} 34. d5 {[%clk 0:01:17.8]} 34...
Re8 {[%clk 0:00:54.3]} 35. Kd4 {[%clk 0:01:17.6]} 35... h5 {[%clk 0:00:52.2]}
36. d6 {[%clk 0:01:08.1]} 36... b6 {[%clk 0:00:51.7]} 37. b4 {[%clk 0:01:07.6]}
37... g4 {[%clk 0:00:46.5]} 38. h3 {[%clk 0:00:59.8]} 38... Kg5 {[%clk
0:00:46.6]} 39. hxg4 {[%clk 0:01:00]} 39... hxg4 {[%clk 0:00:47.2]} 40. b5
{[%clk 0:00:57.9]} 40... cxb5 {[%clk 0:00:45.8]} 41. cxb5 {[%clk 0:00:54.6]}
41... Kf4 {[%clk 0:00:46]} 42. Rf2+ {[%clk 0:00:54.7]} 42... Kg3 {[%clk
0:00:46.1]} 43. Rf7 {[%clk 0:00:54.5]} 43... Kh2 {[%clk 0:00:44.4]} 44. d7
{[%clk 0:00:52.3]} 44... Rd8 {[%clk 0:00:44.3]} 45. e5 {[%clk 0:00:52.7]} 45...
g3 {[%clk 0:00:44.7]} 46. e6 {[%clk 0:00:52.7]} 46... Rg8 {[%clk 0:00:45.2]} 47.
Rh7+ {[%clk 0:00:46.6]} 47... Kg1 {[%clk 0:00:42.5]} 48. e7 {[%clk 0:00:46.2]}
48... g2 {[%clk 0:00:41.9]} 49. e8=Q {[%clk 0:00:46.2]} 1-0

[Event "*** Titled Tuesday Blitz"]
[Site "Chess.com"]
[Date "2020.03.03"]
[Round "6"]
[White "Tayson_7"]
[Black "enriquetejedor"]
[Result "1-0"]
[WhiteElo "2716"]
[BlackElo "2555"]
[TimeControl "180+1"]
[EndTime "14:02:01 PST"]
[Termination "Tayson_7 won by checkmate"]

1. e4 {[%clk 0:03:00.9]} 1... c5 {[%clk 0:02:57.7]} 2. Nf3 {[%clk 0:03:00.1]}
2... Nc6 {[%clk 0:02:57.3]} 3. d4 {[%clk 0:02:59.8]} 3... cxd4 {[%clk
0:02:56.6]} 4. Nxd4 {[%clk 0:03:00.7]} 4... Nf6 {[%clk 0:02:55.8]} 5. Nc3 {[%clk
0:03:01.1]} 5... e5 {[%clk 0:02:48.9]} 6. Ndb5 {[%clk 0:03:00.4]} 6... d6 {[%clk
0:02:42.1]} 7. Bg5 {[%clk 0:02:59]} 7... a6 {[%clk 0:02:36]} 8. Na3 {[%clk
0:02:58.8]} 8... b5 {[%clk 0:02:34.7]} 9. Nd5 {[%clk 0:02:58.6]} 9... Be7 {[%clk
0:02:34.3]} 10. Bxf6 {[%clk 0:02:59]} 10... Bxf6 {[%clk 0:02:34.6]} 11. c4
{[%clk 0:02:59.6]} 11... O-O {[%clk 0:02:08.8]} 12. cxb5 {[%clk 0:02:53.6]}
12... axb5 {[%clk 0:02:09.7]} 13. Bxb5 {[%clk 0:02:47.9]} 13... Nd4 {[%clk
0:02:02.6]} 14. Bd3 {[%clk 0:02:44.3]} 14... Bg5 {[%clk 0:01:53.3]} 15. O-O
{[%clk 0:02:42.9]} 15... Rb8 {[%clk 0:01:50.2]} 16. Nc4 {[%clk 0:02:41.6]} 16...
Be6 {[%clk 0:01:36.1]} 17. Nde3 {[%clk 0:02:01.8]} 17... g6 {[%clk 0:01:25]} 18.
b3 {[%clk 0:01:53]} 18... f5 {[%clk 0:01:25]} 19. f3 {[%clk 0:01:52.5]} 19...
Qe7 {[%clk 0:01:04.1]} 20. Kh1 {[%clk 0:01:47.8]} 20... Bf4 {[%clk 0:00:54.6]}
21. Qe1 {[%clk 0:01:41.4]} 21... Qg5 {[%clk 0:00:45.6]} 22. g3 {[%clk
0:01:36.1]} 22... Bxe3 {[%clk 0:00:45.7]} 23. Qxe3 {[%clk 0:01:36]} 23... f4
{[%clk 0:00:46.3]} 24. Qd2 {[%clk 0:01:30.2]} 24... Bh3 {[%clk 0:00:41.1]} 25.
Rf2 {[%clk 0:01:21.7]} 25... Qe7 {[%clk 0:00:29.6]} 26. Rg1 {[%clk 0:01:20.1]}
26... Kh8 {[%clk 0:00:23.5]} 27. g4 {[%clk 0:01:10.3]} 27... h5 {[%clk
0:00:22.2]} 28. Bf1 {[%clk 0:01:06.5]} 28... hxg4 {[%clk 0:00:19.9]} 29. Bxh3
{[%clk 0:01:06.4]} 29... gxh3 {[%clk 0:00:20]} 30. Rg4 {[%clk 0:01:05.2]} 30...
Kg7 {[%clk 0:00:12.9]} 31. Rf1 {[%clk 0:01:04.7]} 31... Rh8 {[%clk 0:00:12]} 32.
Rfg1 {[%clk 0:01:02.8]} 32... Rh6 {[%clk 0:00:02.4]} 33. Qd3 {[%clk 0:00:56.1]}
33... Ra8 {[%clk 0:00:02.9]} 34. a4 {[%clk 0:00:53.3]} 34... Qc7 {[%clk
0:00:03.3]} 35. Rxf4 {[%clk 0:00:50.9]} 35... exf4 {[%clk 0:00:02.7]} 36. Qxd4+
{[%clk 0:00:51.3]} 36... Kh7 {[%clk 0:00:03.2]} 37. Nxd6 {[%clk 0:00:39.8]}
37... Rh5 {[%clk 0:00:03.4]} 38. Qf6 {[%clk 0:00:39.2]} 38... Rd8 {[%clk
0:00:02.8]} 39. Qxg6+ {[%clk 0:00:38.8]} 39... Kh8 {[%clk 0:00:03.1]} 40. Qxh5+
{[%clk 0:00:39.1]} 40... Qh7 {[%clk 0:00:03.6]} 41. Nf7# {[%clk 0:00:39.1]} 1-0

[Event "*** Titled Tuesday Blitz"]
[Site "Chess.com"]
[Date "2020.03.03"]
[Round "6"]
[White "djano"]
[Black "saikrishnaReturns"]
[Result "0-1"]
[WhiteElo "2389"]
[BlackElo "2646"]
[TimeControl "180+1"]
[EndTime "14:02:03 PST"]
[Termination "saikrishnaReturns won on time"]

1. d4 {[%clk 0:03:00.9]} 1... Nf6 {[%clk 0:02:38.7]} 2. Nf3 {[%clk 0:02:49.5]}
2... g6 {[%clk 0:02:36.2]} 3. g3 {[%clk 0:02:49.1]} 3... Bg7 {[%clk 0:02:36.4]}
4. Bg2 {[%clk 0:02:49.6]} 4... O-O {[%clk 0:02:36.7]} 5. c4 {[%clk 0:02:49]}
5... d6 {[%clk 0:02:37.1]} 6. O-O {[%clk 0:02:49]} 6... Nbd7 {[%clk 0:02:35.2]}
7. Nc3 {[%clk 0:02:48.4]} 7... e5 {[%clk 0:02:35.1]} 8. Qc2 {[%clk 0:02:48.7]}
8... Re8 {[%clk 0:02:33]} 9. Rd1 {[%clk 0:02:48.3]} 9... exd4 {[%clk 0:02:23.4]}
10. Nxd4 {[%clk 0:02:47.2]} 10... a5 {[%clk 0:02:23.7]} 11. e3 {[%clk
0:02:36.7]} 11... Ne5 {[%clk 0:02:19.6]} 12. b3 {[%clk 0:02:36]} 12... h5 {[%clk
0:02:17.9]} 13. Bb2 {[%clk 0:02:31.3]} 13... h4 {[%clk 0:02:17.8]} 14. Nd5
{[%clk 0:02:22.6]} 14... Nh5 {[%clk 0:02:11.3]} 15. Nf4 {[%clk 0:02:10.2]} 15...
Qg5 {[%clk 0:01:52.4]} 16. Nxh5 {[%clk 0:02:00.5]} 16... Qxh5 {[%clk 0:01:53.3]}
17. f3 {[%clk 0:01:28.9]} 17... hxg3 {[%clk 0:01:39.6]} 18. hxg3 {[%clk
0:01:27.9]} 18... c5 {[%clk 0:01:24.3]} 19. g4 {[%clk 0:01:25.7]} 19... Nxg4
{[%clk 0:01:23.7]} 20. fxg4 {[%clk 0:01:25.3]} 20... Bxg4 {[%clk 0:01:24.3]} 21.
Re1 {[%clk 0:00:27.9]} 21... cxd4 {[%clk 0:01:12]} 22. exd4 {[%clk 0:00:28.1]}
22... Bh6 {[%clk 0:01:09.2]} 23. Qf2 {[%clk 0:00:24.7]} 23... a4 {[%clk
0:00:46.6]} 24. Bxb7 {[%clk 0:00:24.2]} 24... Rab8 {[%clk 0:00:46.1]} 25. Bd5
{[%clk 0:00:24]} 25... Be6 {[%clk 0:00:40.6]} 26. Bxe6 {[%clk 0:00:24.2]} 26...
fxe6 {[%clk 0:00:39.3]} 27. d5 {[%clk 0:00:15.5]} 27... axb3 {[%clk 0:00:34.5]}
28. dxe6 {[%clk 0:00:13]} 28... Qg4+ {[%clk 0:00:29.6]} 29. Kh1 {[%clk 0:00:10]}
29... Rxe6 {[%clk 0:00:23.3]} 30. Rxe6 {[%clk 0:00:09.9]} 30... Qxe6 {[%clk
0:00:24.2]} 31. axb3 {[%clk 0:00:09.2]} 31... Qh3+ {[%clk 0:00:19.7]} 32. Kg1
{[%clk 0:00:08.4]} 32... Be3 {[%clk 0:00:18.3]} 0-1